bitfinex/quotes_BTCUSD_20250902
["timestamp","ask_amount","ask_price","bid_price","bid_amount"]
[1756798345548,0.97320919,110460.0,110450.0,0.002]
[1756798347580,1.40512518,110460.0,110450.0,0.002]
[1756798347792,1.42207112,110460.0,110450.0,0.002]
[1756798347995,1.43689861,110460.0,110450.0,0.002]
[1756798349329,1.43054388,110460.0,110450.0,0.002]
[1756798350642,1.43054137,110460.0,110450.0,0.002]
[1756798351588,1.27826137,110460.0,110450.0,0.002]
[1756798351807,1.43050137,110460.0,110450.0,0.002]
[1756798352479,1.27826137,110460.0,110450.0,0.002]
[1756798352708,1.43050137,110460.0,110450.0,0.002]
[1756798355313,1.42203112,110460.0,110450.0,0.002]
[1756798357711,1.25284518,110460.0,110450.0,0.002]
[1756798357951,1.42201909,110460.0,110450.0,0.002]
[1756798358155,1.26977909,110460.0,110450.0,0.002]
[1756798358359,1.42201872,110460.0,110450.0,0.002]
[1756798358577,1.41888872,110460.0,110450.0,0.002]
[1756798360436,1.42193872,110460.0,110450.0,0.002]
[1756798368412,1.42193878,110460.0,110450.0,0.002]
[1756798368619,1.42193877,110460.0,110450.0,0.002]
[1756798369247,1.42192184,110460.0,110450.0,0.002]
[1756798369441,1.43038947,110460.0,110450.0,0.002]
[1756798373352,1.43674418,110460.0,110450.0,0.002]
[1756798374402,6.13549618,110460.0,110450.0,0.002]
[1756798378997,6.13553187,110460.0,110450.0,0.002]
[1756798379216,6.13553638,110460.0,110450.0,0.002]
[1756798379438,6.15992274,110460.0,110450.0,0.002]
[1756798382851,6.18720533,110460.0,110450.0,0.002]
[1756798382990,6.25684533,110460.0,110450.0,0.002]
[1756798384373,6.10460533,110460.0,110450.0,0.002]
[1756798384625,6.25371533,110460.0,110450.0,0.00714]
[1756798384848,0.80277094,110460.0,110450.0,0.00714]
[1756798385072,0.25896714,110460.0,110450.0,0.18821741]
[1756798385301,0.22717101,110460.0,110450.0,0.00714]
[1756798385518,0.5110098,110460.0,110450.0,0.00714]
[1756798386225,0.49147556,110460.0,110450.0,0.18821741]
[1756798386445,0.49147556,110460.0,110450.0,0.00714]
[1756798387095,0.49147556,110460.0,110450.0,0.18821741]
[1756798388209,0.49147556,110460.0,110450.0,0.58821741]
[1756798389794,0.64359556,110460.0,110450.0,0.40714]
[1756798391239,0.64359556,110460.0,110450.0,0.00714]
[1756798391730,0.92736991,110460.0,110450.0,0.40714]
[1756798392434,0.35975677,110460.0,110450.0,0.40714]
[1756798392661,0.92736991,110460.0,110450.0,0.40714]
[1756798392884,0.35975677,110460.0,110450.0,0.58821741]
[1756798393103,0.92736991,110460.0,110450.0,0.58821741]
[1756798393327,0.77524991,110460.0,110450.0,0.58821741]
[1756798393559,0.28380657,110480.0,110470.0,0.18104462]
[1756798393790,0.30330874,110480.0,110470.0,0.18620462]
[1756798394218,0.36047056,110490.0,110470.0,0.18620462]
[1756798394365,4.98255857,110480.0,110470.0,0.18304462]
[1756798394609,0.28480657,110480.0,110470.0,0.18304462]
[1756798394806,0.48879283,110480.0,110470.0,0.18304462]
[1756798395000,0.48879283,110480.0,110470.0,0.58620462]
[1756798395303,0.20498626,110480.0,110470.0,0.58620462]
[1756798395550,0.48779283,110480.0,110470.0,0.58620462]
[1756798395775,0.48979283,110480.0,110470.0,0.74132462]
[1756798396138,0.48779283,110480.0,110470.0,0.74132462]
[1756798396350,0.20398626,110480.0,110470.0,0.74132462]
[1756798396550,0.48779283,110480.0,110470.0,0.74132462]
[1756798396758,0.20398626,110480.0,110470.0,0.74132462]
[1756798396964,0.48779283,110480.0,110470.0,0.74132462]
[1756798398151,0.02295802,110480.0,110470.0,0.34132462]
[1756798398360,0.18102824,110480.0,110470.0,0.18920462]
[1756798398557,0.46483481,110480.0,110470.0,0.18920462]
[1756798398756,0.46483481,110480.0,110470.0,0.58920462]
[1756798399164,0.18102824,110480.0,110470.0,0.58920462]
[1756798399364,0.46483481,110480.0,110470.0,0.58920462]
[1756798399669,0.28380657,110480.0,110470.0,0.58920462]
[1756798399871,0.46483481,110480.0,110470.0,0.58920462]
[1756798400407,0.18102824,110480.0,110470.0,0.58920462]
[1756798400613,0.28380657,110480.0,110470.0,0.58920462]
[1756798400800,0.3067261,110480.0,110470.0,0.58920462]
[1756798401745,0.3067261,110480.0,110470.0,0.18920462]
[1756798402300,0.02291953,110480.0,110470.0,0.58920462]
[1756798402504,0.00014133,110490.0,110480.0,0.18102824]
[1756798402706,0.00014133,110490.0,110480.0,1.06763737]
[1756798403063,0.00014133,110490.0,110480.0,0.7838308]
[1756798403265,0.00014133,110490.0,110480.0,0.50002423]
[1756798403483,0.00014133,110490.0,110480.0,0.6315508]
[1756798403616,0.00014133,110490.0,110480.0,0.7838708]
[1756798403830,0.00014133,110490.0,110480.0,0.8110808]
[1756798404206,0.00014133,110490.0,110480.0,0.8111608]
[1756798404492,0.00014133,110490.0,110480.0,0.8121608]
[1756798405085,0.00014133,110490.0,110480.0,0.6597608]
[1756798405312,0.00014133,110490.0,110480.0,0.8111208]
[1756798405532,0.00014133,110490.0,110480.0,0.8121208]
[1756798405747,0.00014133,110490.0,110480.0,0.77595423]
[1756798405964,0.2839479,110490.0,110480.0,0.92931423]
[1756798406139,0.2839479,110490.0,110480.0,0.83759824]
[1756798407011,0.46495975,110490.0,110480.0,0.68403824]
[1756798407261,0.46495975,110490.0,110480.0,0.84059824]
[1756798407468,0.2839479,110490.0,110480.0,0.84059824]
[1756798408621,0.46701975,110490.0,110480.0,0.61323824]
[1756798408844,0.46701975,110490.0,110480.0,0.76575824]
[1756798408845,0.46996975,110490.0,110480.0,0.76575824]
[1756798409078,0.46996975,110490.0,110480.0,0.43221]
[1756798409313,0.75377632,110490.0,110480.0,0.58477]
[1756798409521,0.46996975,110490.0,110480.0,0.58477]
[1756798410017,0.46996975,110490.0,110480.0,0.55756]
[1756798410259,0.46996975,110490.0,110480.0,0.55656]
[1756798410722,0.18616318,110490.0,110480.0,0.55256]
[1756798410973,0.46996975,110490.0,110480.0,0.55456]
[1756798411211,0.18616318,110490.0,110480.0,0.55456]
[1756798411435,0.18616318,110490.0,110480.0,0.55256]
[1756798411641,0.46996975,110490.0,110480.0,0.55456]
[1756798411843,0.28675657,110490.0,110480.0,0.55456]
[1756798412091,0.18299185,110490.0,110480.0,0.55456]
[1756798412336,0.46679842,110490.0,110480.0,0.402]
[1756798413070,0.46679842,110490.0,110480.0,0.002]
[1756798417005,0.46679842,110490.0,110480.0,0.00405]
[1756798417505,0.46679842,110490.0,110480.0,0.00715]
[1756798418001,0.61919842,110490.0,110480.0,0.00715]
[1756798418240,0.43818657,110490.0,110480.0,0.00715]
[1756798418481,0.61919842,110490.0,110480.0,0.00715]
[1756798419140,0.61919842,110490.0,110480.0,0.40715]
[1756798419358,0.61919842,110490.0,110480.0,0.402]
[1756798420844,0.46679842,110490.0,110480.0,0.402]
[1756798421086,0.61911842,110490.0,110480.0,0.402]
[1756798421540,0.61911842,110490.0,110480.0,0.4051]
[1756798422241,0.61911842,110490.0,110480.0,0.0051]
[1756798422485,0.61911842,110490.0,110480.0,0.00715]
[1756798422780,0.61911842,110490.0,110480.0,0.40715]
[1756798423528,0.46679842,110490.0,110480.0,0.40405]
[1756798423778,0.61907842,110490.0,110480.0,0.40715]
[1756798425582,0.61907842,110490.0,110480.0,0.00715]
[1756798426088,0.61907842,110490.0,110480.0,0.40715]
[1756798426338,0.61899842,110490.0,110480.0,0.40715]
[1756798426974,1.26374381,110490.0,110480.0,0.402]
[1756798427175,1.2943115,110490.0,110480.0,0.002]
[1756798427800,1.3215285,110490.0,110480.0,0.002]
[1756798431052,1.3130693,110490.0,110480.0,0.002]
[1756798431260,1.32152805,110490.0,110480.0,0.002]
[1756798431749,1.3215281,110490.0,110480.0,0.002]
[1756798433186,1.30678906,110490.0,110480.0,0.002]
[1756798434997,1.68316162,110490.0,110480.0,0.002]
[1756798435184,6.4051814,110490.0,110480.0,0.002]
[1756798435421,6.45339123,110490.0,110480.0,0.002]
[1756798436346,6.00476167,110490.0,110480.0,0.002]
[1756798436586,6.15792167,110490.0,110480.0,0.002]
[1756798436835,0.54198344,110470.0,110460.0,0.0031]
[1756798437103,0.97795001,110470.0,110460.0,0.0031]
[1756798437355,0.82579001,110470.0,110460.0,0.00515]
[1756798437606,1.00517201,110470.0,110460.0,0.00515]
[1756798438113,1.00517201,110470.0,110460.0,0.00715]
[1756798438883,1.29000858,110470.0,110460.0,0.0051]
[1756798439103,1.29000858,110470.0,110460.0,0.002]
[1756798439772,1.13784858,110470.0,110460.0,0.002]
[1756798440005,1.28996858,110470.0,110460.0,0.0051]
[1756798440474,5.98872058,110470.0,110460.0,0.002]
[1756798442172,5.42110744,110470.0,110460.0,0.0051]
[1756798442391,5.98872058,110470.0,110460.0,0.0051]
[1756798442857,5.98872058,110470.0,110460.0,0.002]
[1756798442858,6.36580289,110470.0,110460.0,0.002]
[1756798443107,6.41627744,110470.0,110460.0,0.002]
[1756798443372,6.44006947,110470.0,110460.0,0.002]
[1756798443612,6.46448727,110470.0,110460.0,0.002]
[1756798443795,0.1810938,110440.0,110430.0,0.0031]
[1756798444036,0.90094694,110440.0,110430.0,0.0031]
[1756798444240,0.90094694,110440.0,110430.0,0.00515]
[1756798444736,0.00905551,110430.0,110400.0,0.09596]
[1756798444959,0.18114301,110410.0,110400.0,0.43031142]
[1756798445190,0.46494958,110410.0,110400.0,0.40355027]
[1756798445419,0.46494958,110410.0,110400.0,0.40879027]
[1756798445634,0.48531237,110410.0,110400.0,0.40879027]
[1756798446328,0.30416936,110410.0,110400.0,0.40879027]
[1756798446542,0.48531237,110410.0,110400.0,0.40879027]
[1756798446959,0.2015058,110410.0,110400.0,0.40879027]
[1756798447193,0.48531237,110410.0,110400.0,0.41679027]
[1756798447399,0.48531237,110410.0,110400.0,0.41179027]
[1756798447823,0.48531237,110410.0,110400.0,0.41679027]
[1756798448706,0.63759237,110410.0,110400.0,0.01371085]
[1756798450023,0.63759237,110410.0,110400.0,0.01071085]
[1756798450244,0.63759237,110410.0,110400.0,0.01271085]
[1756798450460,0.63759237,110410.0,110400.0,0.00771085]
[1756798450669,0.63759237,110410.0,110400.0,0.00971085]
[1756798450892,0.3548158,110410.0,110400.0,0.00447085]
[1756798451134,5.98211976,110410.0,110400.0,0.00047085]
[1756798451556,5.69864238,110410.0,110400.0,0.00647085]
[1756798451764,5.70227438,110410.0,110400.0,0.00647085]
[1756798452468,5.70227438,110410.0,110400.0,0.00247085]
[1756798452898,5.70227438,110410.0,110400.0,0.00047085]
[1756798453104,5.41813862,110410.0,110400.0,0.00047085]
[1756798453322,5.70227438,110410.0,110400.0,0.00147085]
[1756798453802,5.79419037,110410.0,110400.0,0.00347085]
[1756798454018,5.79419037,110410.0,110400.0,0.00047085]
[1756798454224,5.79419037,110410.0,110400.0,0.00147085]
[1756798454417,5.79419037,110410.0,110400.0,0.00447085]
[1756798459477,5.51005461,110410.0,110400.0,0.00447085]
[1756798459677,5.79419037,110410.0,110400.0,0.00447085]
[1756798460294,5.81099072,110410.0,110400.0,0.00447085]
[1756798461088,5.85222098,110410.0,110400.0,0.00447085]
[1756798461813,5.56869522,110410.0,110400.0,0.00971085]
[1756798462083,1.15408305,110410.0,110400.0,0.00971085]
[1756798462485,1.15408868,110410.0,110400.0,0.00971085]
[1756798463455,1.15511868,110410.0,110400.0,0.00971085]
[1756798464602,1.24094729,110410.0,110400.0,0.00447085]
[1756798464864,1.43925444,110410.0,110400.0,0.00447085]
[1756798465559,5.41581492,110410.0,110400.0,0.00347085]
[1756798465774,5.85623068,110410.0,110400.0,0.00347085]
[1756798466207,5.85623068,110410.0,110400.0,0.00047085]
[1756798466428,5.86254585,110410.0,110400.0,0.00047085]
[1756798466634,5.86254585,110410.0,110400.0,0.00147085]
[1756798468019,5.57833009,110410.0,110400.0,0.00671085]
[1756798468263,5.88187732,110410.0,110400.0,0.00671085]
[1756798469268,5.89031375,110410.0,110400.0,0.00671085]
[1756798470041,5.89031375,110410.0,110400.0,0.00467085]
[1756798470242,5.89031375,110410.0,110400.0,0.00147085]
[1756798470565,6.29080753,110410.0,110400.0,0.00147085]
[1756798470772,6.3150015,110410.0,110400.0,0.00147085]
[1756798471560,6.22308551,110410.0,110400.0,0.00147085]
[1756798471941,6.19929348,110410.0,110400.0,0.00147085]
[1756798472373,6.23183805,110410.0,110400.0,0.00147085]
[1756798472551,6.22660663,110410.0,110400.0,0.00047085]
[1756798472827,6.23556919,110410.0,110400.0,0.00047085]
[1756798473011,6.23456919,110410.0,110400.0,0.00047085]
[1756798473420,6.23556919,110410.0,110400.0,0.00047085]
[1756798474162,6.21137522,110410.0,110400.0,0.00047085]
[1756798475025,6.05189522,110410.0,110400.0,0.00047085]
[1756798475272,6.21113522,110410.0,110400.0,0.00047085]
[1756798475479,6.21010522,110410.0,110400.0,0.00549085]
[1756798475616,6.21113522,110410.0,110400.0,0.00047085]
[1756798478443,6.25995207,110410.0,110400.0,0.00047085]
[1756798479604,6.25150866,110410.0,110400.0,0.00047085]
[1756798479816,6.25997091,110410.0,110400.0,0.00047085]
[1756798480976,6.26062091,110410.0,110400.0,0.00047085]
[1756798481850,6.25997091,110410.0,110400.0,0.00047085]
[1756798482953,6.25941091,110410.0,110400.0,0.00047085]
[1756798483149,6.24465606,110410.0,110400.0,0.00047085]
[1756798483358,6.25946667,110410.0,110400.0,0.00047085]
[1756798486230,6.21064982,110410.0,110400.0,0.00047085]
[1756798486925,6.21064974,110410.0,110400.0,0.00047085]
[1756798488935,6.25946659,110410.0,110400.0,0.00047085]
[1756798490284,6.21064974,110410.0,110400.0,0.00351085]
[1756798493904,6.20218652,110410.0,110400.0,0.00549085]
[1756798494148,6.21066304,110410.0,110400.0,0.00047085]
[1756798494380,6.21066304,110410.0,110400.0,0.00351085]
[1756798494799,6.2106634,110410.0,110400.0,0.00351085]
[1756798495483,6.2106634,110410.0,110400.0,0.00047085]
[1756798496862,6.23505331,110410.0,110400.0,0.00047085]
[1756798497074,6.23505331,110410.0,110400.0,0.00351085]
[1756798498485,6.23505331,110410.0,110400.0,0.00549085]
[1756798500351,6.2102734,110410.0,110400.0,0.00549085]
[1756798500552,5.95054811,110410.0,110400.0,0.00549085]
[1756798502322,5.91800354,110410.0,110400.0,0.00549085]
[1756798502959,5.63386778,110410.0,110400.0,0.00549085]
[1756798503176,5.63370778,110410.0,110400.0,0.00549085]
[1756798503377,5.89244268,110410.0,110400.0,0.00549085]
[1756798503590,5.91787699,110410.0,110400.0,0.00549085]
[1756798503938,5.91787657,110410.0,110400.0,0.00549085]
[1756798506472,5.63374081,110410.0,110400.0,0.00549085]
[1756798506689,5.91787657,110410.0,110400.0,0.00549085]
[1756798506899,5.91890657,110410.0,110400.0,0.00549085]
[1756798511535,6.20302619,110410.0,110400.0,0.00549085]
[1756798513970,6.17971792,110410.0,110400.0,0.00549085]
[1756798514240,6.20302544,110410.0,110400.0,0.00549085]
[1756798514694,6.20199519,110410.0,110400.0,0.00549085]
[1756798515438,6.20302519,110410.0,110400.0,0.00549085]
[1756798517011,6.20199519,110410.0,110400.0,0.00549085]
[1756798517223,6.20302519,110410.0,110400.0,0.00549085]
[1756798517596,6.20302519,110410.0,110400.0,0.00351085]
[1756798517826,6.20302519,110410.0,110400.0,0.00552085]
[1756798520484,0.93410781,110410.0,110400.0,0.00552085]
[1756798520725,1.16839857,110410.0,110400.0,0.00552085]
[1756798520947,1.15841003,110410.0,110400.0,0.00552085]
[1756798522325,1.11863577,110410.0,110400.0,0.00552085]
[1756798525039,1.13684711,110410.0,110400.0,0.00552085]
[1756798525933,0.85271942,110410.0,110400.0,0.00552085]
[1756798526164,1.13684711,110410.0,110400.0,0.00552085]
[1756798528165,1.13648711,110410.0,110400.0,0.00552085]
[1756798532340,1.13751711,110410.0,110400.0,0.00047085]
[1756798532544,1.4206148,110410.0,110400.0,0.00541085]
[1756798532981,1.13648711,110410.0,110400.0,0.00541085]
[1756798533844,0.56129317,110410.0,110400.0,0.00541085]
[1756798534044,1.00350086,110410.0,110400.0,0.00541085]
[1756798536813,1.00453086,110410.0,110400.0,0.00047085]
[1756798537031,6.09946967,110410.0,110400.0,0.00047085]
[1756798537290,6.43409969,110410.0,110400.0,0.00047085]
[1756798537508,6.149972,110410.0,110400.0,0.00888985]
[1756798538353,6.15843171,110410.0,110400.0,0.00888985]
[1756798538567,6.149972,110410.0,110400.0,0.00888985]
[1756798539611,6.28292656,110410.0,110400.0,0.00888985]
[1756798539826,6.50800842,110410.0,110400.0,0.00888985]
[1756798540866,6.22388073,110410.0,110400.0,0.00888985]
[1756798543376,6.22323073,110410.0,110400.0,0.00888985]
[1756798545106,6.06515073,110410.0,110400.0,0.00888985]
[1756798545315,6.22383073,110410.0,110400.0,0.00888985]
[1756798545930,6.22382723,110410.0,110400.0,0.00888985]
[1756798546137,6.22382566,110410.0,110400.0,0.00888985]
[1756798546351,6.22283566,110410.0,110400.0,0.01403985]
[1756798546554,6.18996707,110410.0,110400.0,0.01403985]
[1756798546769,6.1899669,110410.0,110400.0,0.01403985]
[1756798547795,6.0312469,110410.0,110400.0,0.01403985]
[1756798548002,6.1898069,110410.0,110400.0,0.01403985]
[1756798549882,5.46299152,110410.0,110400.0,0.01403985]
[1756798550086,6.1896469,110410.0,110400.0,0.01403985]
[1756798551300,6.1906769,110410.0,110400.0,0.01403985]
[1756798551911,6.1906769,110410.0,110400.0,0.00888985]
[1756798554037,6.17246556,110410.0,110400.0,0.00888985]
[1756798554643,6.19687603,110410.0,110400.0,0.00888985]
[1756798555751,6.56353219,110410.0,110400.0,0.00888985]
[1756798555967,6.48165372,110410.0,110400.0,0.00888985]
[1756798556153,6.19651603,110410.0,110400.0,0.00888985]
[1756798556551,6.19651634,110410.0,110400.0,0.00888985]
[1756798556939,6.20497426,110410.0,110400.0,0.00888985]
[1756798559876,6.04693426,110410.0,110400.0,0.00888985]
[1756798560094,6.04693426,110410.0,110400.0,0.01188985]
[1756798560304,6.20489426,110410.0,110400.0,0.01188985]
[1756798560718,6.20485426,110410.0,110400.0,0.01403985]
[1756798561147,6.20485426,110410.0,110400.0,0.03830985]
[1756798562438,6.20485645,110410.0,110400.0,0.03830985]
[1756798563927,6.20485645,110410.0,110400.0,0.03530985]
[1756798565070,6.20485645,110410.0,110400.0,0.03830985]
[1756798565405,5.63660107,110410.0,110400.0,0.03830985]
[1756798565611,6.20485645,110410.0,110400.0,0.03830985]
[1756798565990,6.20488036,110410.0,110400.0,0.03830985]
[1756798566131,6.23742493,110410.0,110400.0,0.03830985]
[1756798566564,6.23743768,110410.0,110400.0,0.03830985]
[1756798567431,6.20489311,110410.0,110400.0,0.03830985]
[1756798568533,6.23743768,110410.0,110400.0,0.03830985]
[1756798569383,6.23743768,110410.0,110400.0,0.03530985]
[1756798570105,6.23743768,110410.0,110400.0,0.03835985]
[1756798570981,6.23745752,110410.0,110400.0,0.03835985]
[1756798571960,6.07953752,110410.0,110400.0,0.03835985]
[1756798572153,5.91911526,110410.0,110400.0,0.04036985]
[1756798572341,5.91903526,110410.0,110400.0,0.04036985]
[1756798572546,5.57903526,110410.0,110400.0,0.04036985]
[1756798572744,5.55179626,110410.0,110400.0,0.04036985]
[1756798573169,5.85255935,110410.0,110400.0,0.04036985]
[1756798573508,5.56843166,110410.0,110400.0,0.04036985]
[1756798573979,5.85247206,110410.0,110400.0,0.04036985]
[1756798574956,5.85350206,110410.0,110400.0,0.04036985]
[1756798575157,5.56946166,110410.0,110400.0,0.04036985]
[1756798575317,5.85350206,110410.0,110400.0,0.04036985]
[1756798576679,5.73964027,110410.0,110400.0,0.04036985]
[1756798577329,5.76687827,110410.0,110400.0,0.03530985]
[1756798578139,5.76687827,110410.0,110400.0,0.04036985]
[1756798578502,5.78781709,110410.0,110400.0,0.04036985]
[1756798578705,5.78781709,110410.0,110400.0,0.03835985]
[1756798579549,5.50377669,110410.0,110400.0,0.03835985]
[1756798579701,5.78781709,110410.0,110400.0,0.03835985]
[1756798582485,6.16377348,110410.0,110400.0,0.03530985]
[1756798582691,6.17924315,110410.0,110400.0,0.03530985]
[1756798583595,6.17923729,110410.0,110400.0,0.03530985]
[1756798584015,6.22777661,110410.0,110400.0,0.03530985]
[1756798586665,6.25218708,110410.0,110400.0,0.03530985]
[1756798586868,6.28473165,110410.0,110400.0,0.03530985]
[1756798587082,6.26144179,110410.0,110400.0,0.03530985]
[1756798587265,6.28472635,110410.0,110400.0,0.03530985]
[1756798587411,6.25997853,110410.0,110400.0,0.03530985]
[1756798589460,6.25997989,110410.0,110400.0,0.03530985]
[1756798589660,6.23556942,110410.0,110400.0,0.03530985]
[1756798590508,6.26772201,110410.0,110400.0,0.03530985]
[1756798590669,6.26680201,110410.0,110400.0,0.03530985]
[1756798591423,6.26680082,110410.0,110400.0,0.03530985]
[1756798592034,6.53405832,110410.0,110400.0,1e-08]
[1756798592340,6.53346463,110410.0,110400.0,1e-08]
[1756798592798,6.86750503,110410.0,110400.0,1e-08]
[1756798593013,7.12321408,110410.0,110400.0,1e-08]
[1756798593236,7.13731943,110410.0,110400.0,1e-08]
[1756798594169,7.14031943,110410.0,110400.0,1e-08]
[1756798594359,7.17279606,110410.0,110400.0,1e-08]
[1756798594832,7.14031475,110410.0,110400.0,1e-08]
[1756798595267,7.01658754,110410.0,110400.0,1e-08]
[1756798595488,6.86200714,110410.0,110400.0,1e-08]
[1756798595919,7.14604754,110410.0,110400.0,1e-08]
[1756798597212,7.09723069,110410.0,110400.0,1e-08]
[1756798597421,6.94111069,110410.0,110400.0,1e-08]
[1756798597657,7.0052347,110410.0,110400.0,1e-08]
[1756798597850,7.04767758,110410.0,110400.0,1e-08]
[1756798598023,7.06301729,110410.0,110400.0,1e-08]
[1756798599226,7.01420044,110410.0,110400.0,1e-08]
[1756798599430,7.10611643,110410.0,110400.0,1e-08]
[1756798600481,6.95007643,110410.0,110400.0,1e-08]
[1756798600687,6.98933262,110410.0,110400.0,1e-08]
[1756798600972,6.83341262,110410.0,110400.0,1e-08]
[1756798601122,6.98929262,110410.0,110400.0,1e-08]
[1756798601322,6.98864262,110410.0,110400.0,1e-08]
[1756798601532,6.69556222,110410.0,110400.0,1e-08]
[1756798601929,6.71190628,110410.0,110400.0,1e-08]
[1756798602550,6.4078267,110410.0,110400.0,0.00516001]
[1756798602764,6.23692788,110410.0,110400.0,0.00516001]
[1756798603144,5.8746369,110410.0,110400.0,0.00516001]
[1756798603584,6.07977572,110410.0,110400.0,0.00516001]
[1756798603822,6.23561572,110410.0,110400.0,0.00516001]
[1756798604733,6.32753171,110410.0,110400.0,0.00516001]
[1756798605094,6.23561572,110410.0,110400.0,0.00516001]
[1756798605736,6.23664572,110410.0,110400.0,0.00516001]
[1756798605895,6.23561572,110410.0,110400.0,0.00516001]
[1756798606236,0.52117583,110390.0,110380.0,0.0004]
[1756798606439,5.84073735,110390.0,110380.0,0.0004]
[1756798606797,5.55669695,110390.0,110380.0,0.00238]
[1756798607003,5.82483722,110390.0,110380.0,0.00238]
[1756798607327,5.84431266,110390.0,110380.0,0.00238]
[1756798607523,5.84431266,110390.0,110380.0,0.00438]
[1756798608200,5.84431266,110390.0,110380.0,0.00756]
[1756798610322,5.86122818,110390.0,110380.0,0.00756]
[1756798613264,5.86094818,110390.0,110380.0,0.00756]
[1756798613757,5.57690778,110390.0,110380.0,0.00756]
[1756798613982,5.86094818,110390.0,110380.0,0.00756]
[1756798617154,5.86305818,110390.0,110380.0,0.00756]
[1756798617387,5.86729755,110390.0,110380.0,0.00756]
[1756798617854,5.86709755,110390.0,110380.0,0.00756]
[1756798618663,5.86920755,110390.0,110380.0,0.00756]
[1756798618909,6.24818394,110390.0,110380.0,0.0024]
[1756798619115,6.31726135,110390.0,110380.0,0.0024]
[1756798619315,6.22534536,110390.0,110380.0,0.0024]
[1756798619952,6.25778115,110390.0,110380.0,0.0024]
[1756798625195,6.25860963,110390.0,110380.0,1e-08]
[1756798625398,6.25469453,110390.0,110380.0,1e-08]
[1756798625995,6.34661052,110390.0,110380.0,1e-08]
[1756798626729,6.25469453,110390.0,110380.0,1e-08]
[1756798626938,0.54213106,110380.0,110370.0,0.0004]
[1756798627156,0.18120866,110370.0,110360.0,0.0004]
[1756798627361,6.04860342,110370.0,110360.0,0.0004]
[1756798627565,5.76456302,110370.0,110360.0,0.0004]
[1756798627813,5.7925697,110370.0,110360.0,0.0004]
[1756798628207,6.4166101,110370.0,110360.0,1e-08]
[1756798628408,6.4166101,110370.0,110360.0,0.00014134]
[1756798628621,6.4165834,110370.0,110360.0,0.00014134]
[1756798628745,6.4165434,110370.0,110360.0,0.00014134]
[1756798629563,6.4165434,110370.0,110360.0,0.00114134]
[1756798630234,5.29069739,110370.0,110360.0,0.00648134]
[1756798630435,0.6440785,110370.0,110360.0,0.00648134]
[1756798630592,0.96460306,110370.0,110360.0,0.00648134]
[1756798630791,1.26958228,110370.0,110360.0,0.00648134]
[1756798631000,0.62092906,110370.0,110360.0,0.21616642]
[1756798631201,0.62092906,110370.0,110360.0,0.03494134]
[1756798631593,0.90496946,110370.0,110360.0,0.03494134]
[1756798633455,1.04764006,110370.0,110360.0,0.03494134]
[1756798633681,1.04752006,110370.0,110360.0,0.03494134]
[1756798635274,0.89196006,110370.0,110360.0,0.03494134]
[1756798635501,1.04752006,110370.0,110360.0,0.21616642]
[1756798635708,0.69210436,110370.0,110360.0,0.21616642]
[1756798636334,0.3553757,110370.0,110360.0,0.21616642]
[1756798636546,0.5108957,110370.0,110360.0,0.21616642]
[1756798636982,0.55750676,110380.0,110370.0,0.18120866]
[1756798637189,1.06840246,110380.0,110370.0,0.18654866]
[1756798637391,0.91288246,110380.0,110370.0,0.18654866]
[1756798637599,1.06840246,110380.0,110370.0,0.18654866]
[1756798637806,1.06840246,110380.0,110370.0,0.00534]
[1756798638150,1.06840246,110380.0,110370.0,0.00634]
[1756798640181,1.42586816,110380.0,110370.0,0.00634]
[1756798640398,6.12768016,110380.0,110370.0,0.001]
[1756798641235,6.12462016,110380.0,110370.0,0.00315]
[1756798644087,5.05640306,110380.0,110370.0,0.00634]
[1756798644300,6.12462016,110380.0,110370.0,0.00315]
[1756798645268,1.06856246,110380.0,110370.0,0.00634]
[1756798648113,1.42908816,110380.0,110370.0,0.001]
[1756798648314,1.42602816,110380.0,110370.0,0.00634]
[1756798648484,1.07065246,110380.0,110370.0,0.00634]
[1756798653887,1.06856246,110380.0,110370.0,0.00634]
[1756798654528,0.35817106,110380.0,110370.0,0.00634]
[1756798654728,1.06892246,110380.0,110370.0,0.18754866]
[1756798654936,0.86481079,110380.0,110370.0,0.18754866]
[1756798655137,1.04600303,110380.0,110370.0,0.18754866]
[1756798655554,0.59991462,110390.0,110370.0,0.18754866]
[1756798655770,0.59991462,110390.0,110380.0,0.18638714]
[1756798655972,0.34627462,110390.0,110380.0,0.18852714]
[1756798656178,0.34627462,110390.0,110380.0,0.18626224]
[1756798657016,0.70265032,110390.0,110380.0,0.18626224]
[1756798658247,0.3563757,110390.0,110380.0,0.18626224]
[1756798658455,0.5122957,110390.0,110380.0,0.18626224]
[1756798659272,0.5112957,110390.0,110380.0,0.18626224]
[1756798659476,0.69247153,110390.0,110380.0,0.18726224]
[1756798660516,0.69247153,110390.0,110380.0,0.18926224]
[1756798660926,0.15592,110390.0,110380.0,0.18926224]
[1756798661133,0.5112957,110390.0,110380.0,0.18926224]
[1756798661336,0.5111357,110390.0,110380.0,0.18926224]
[1756798661558,0.69231153,110390.0,110380.0,0.18926224]
[1756798662160,0.5111357,110390.0,110380.0,0.18926224]
[1756798662486,0.69231153,110390.0,110380.0,0.18926224]
[1756798663710,0.5111357,110390.0,110380.0,0.18926224]
[1756798665009,0.3553757,110390.0,110380.0,0.18926224]
[1756798665150,0.5109757,110390.0,110380.0,0.18926224]
[1756798665379,0.35712847,110400.0,110390.0,0.18117583]
[1756798665573,0.35712847,110400.0,110390.0,0.18558052]
[1756798665574,0.69384789,110400.0,110390.0,0.18558052]
[1756798665896,0.69384789,110400.0,110390.0,0.18851052]
[1756798666092,0.69384789,110400.0,110390.0,0.18624583]
[1756798666669,0.51268847,110400.0,110390.0,0.18624583]
[1756798667220,0.69384789,110400.0,110390.0,0.18624583]
[1756798667384,1.04922359,110400.0,110390.0,0.18624583]
[1756798667740,1.04922359,110400.0,110390.0,0.18724583]
[1756798668266,1.04922359,110400.0,110390.0,0.18624583]
[1756798669070,1.04922359,110400.0,110390.0,0.18824583]
[1756798669271,1.04922359,110400.0,110390.0,0.18924583]
[1756798670964,1.05135359,110400.0,110390.0,0.18924583]
[1756798671705,1.05135359,110400.0,110390.0,0.00514]
[1756798671916,1.05135359,110400.0,110390.0,0.003]
[1756798671917,1.40971929,110400.0,110390.0,0.003]
[1756798673163,0.34359219,110400.0,110390.0,0.003]
[1756798673362,1.40971929,110400.0,110390.0,0.003]
[1756798673592,1.40942943,110400.0,110390.0,0.003]
[1756798676853,1.05405373,110400.0,110390.0,0.003]
[1756798679099,1.05058373,110400.0,110390.0,0.18644052]
[1756798679306,1.04845373,110400.0,110390.0,0.19151052]
[1756798679544,1.04841373,110400.0,110390.0,0.18924583]
[1756798680337,1.05054373,110400.0,110390.0,0.00807]
[1756798680538,1.05054373,110400.0,110390.0,0.18924583]
[1756798680951,1.05054373,110400.0,110390.0,0.18631583]